Cogmind - Beta 10.2 @@@ ROGUE MODE // 2020.11.05 @ 18:09:48 // Halloween2020/ForbiddenLore Player: Sherlockkat Result: Self-destructed Performance ------------- Evolutions (1) 500 Regions Visited (5) 1000 Robots Destroyed (21) 105 Value Destroyed (353) 353 Prototype IDs (1) 20 Alien Tech Used (0) 0 Bonus (-87) -87 TOTAL SCORE: 1891 Bonus ------- Friendly Fire -87 Cogmind --------- Core Integrity 259/400 Matter 135/300 Energy 93/100 System Corruption 0% Temperature Cool (65) Movement Treading (180) Ox1 Location -9/Exiles Parts ------- > --- POWER (1) -------- (None) > --- PROPULSION (3) --- Light Treads > --- UTILITY (2) ------ Large Storage Unit Large Storage Unit > --- WEAPON (3) ------- Advanced Beam Cannon Light Assault Rifle > --- INVENTORY (16) --- Small Storage Unit Large Matter Pod (150) Propulsion Shielding Propulsion Shielding Propulsion Shielding Light Armor Plating EM Pulse Gun EM Pulse Gun Light EM Pulse Cannon Grenade Launcher Rocket Launcher Peak State ------------ > --- POWER ------------ Ion Engine > --- PROPULSION ------- Light Treads Light Treads Wheel > --- UTILITY ---------- Large Storage Unit Large Storage Unit > --- WEAPON ----------- Advanced Beam Cannon Assault Rifle Assault Rifle > --- INVENTORY -------- Light Nuclear Core Light Treads Small Storage Unit Large Matter Pod Propulsion Shielding Propulsion Shielding Propulsion Shielding Light Armor Plating EM Pulse Gun EM Pulse Gun Light EM Pulse Cannon Light Assault Rifle Grenade Launcher Rocket Launcher [Rating: 12] Favorites ----------- Power Ion Engine Engine Ion Engine Power Core Light Nuclear Core Propulsion Light Treads Treads Light Treads Wheel Wheel Utility Large Storage Unit Storage Large Storage Unit Protection Light Armor Plating Weapon EM Pulse Gun Energy Gun EM Pulse Gun Energy Cannon Advanced Beam Cannon Ballistic Gun Assault Rifle Launcher Rocket Launcher Build | -11 -10 -10 -9 -9 -9 ------- Run | Scr Mat Min Mat Min Exi Slots Evolved 2 | . . . 2 . . Power . | . . . . . . Propulsion 1 | . . . 1 . . Utility . | . . . . . . Weapon 1 | . . . 1 . . Parts Attached 27 | 6 3 . 6 . 12 Power 2 | 1 . . . . 1 Engine 1 | 1 . . . . . Core 1 | . . . . . 1 Reactor . | . . . . . . Propulsion 8 | 2 . . 1 . 5 Treads 6 | 2 . . 1 . 3 Leg . | . . . . . . Wheel 2 | . . . . . 2 Hover . | . . . . . . Flight . | . . . . . . Utility 4 | 1 2 . 1 . . Device . | . . . . . . Storage 3 | 1 1 . 1 . . Processor . | . . . . . . Hackware . | . . . . . . Protection 1 | . 1 . . . . Artifact . | . . . . . . Weapon 13 | 2 1 . 4 . 6 Energy Gun 4 | . 1 . 3 . . Energy Cannon 3 | . . . 1 . 2 Ballistic Gun 5 | 2 . . . . 3 Ballistic Cannon . | . . . . . . Launcher 1 | . . . . . 1 Special Weapon . | . . . . . . Impact Weapon . | . . . . . . Slashing Weapon . | . . . . . . Piercing Weapon . | . . . . . . Special Melee Weapon . | . . . . . . Unidentified Prototypes 1 | . . . 1 . . Parts Lost 9 | . . . . . 9 Power 2 | . . . . . 2 Propulsion 5 | . . . . . 5 Utility . | . . . . . . Weapon 2 | . . . . . 2 Highest Loss Streak 9 | . . . . . 9 Average Slot Usage (%) 96 | . 99 100 91 100 89 Engine 11 | . 14 14 11 11 8 Treads 28 | . 28 28 24 33 24 Storage 19 | . 14 14 20 22 22 Protection 4 | . 13 14 1 . . Energy Gun 15 | . 4 14 21 22 7 Ballistic Gun 15 | . 23 14 11 11 20 Naked Turns . | . . . . . . Heaviest Build 43 | 12 28 28 43 43 43 Greatest Support 60 | 40 40 40 60 60 60 Greatest Overweight (x) 4 | . . . 1 . 4 Average Overweight (x) . | . . . . . . Largest Inventory Capacity 16 | 6 10 10 16 16 16 Average Capacity 13 | 5 8 10 15 16 16 Most Carried 16 | 4 10 10 16 16 16 Average Carried 12 | 2 7 10 14 15 14 Final Capacity 16 | 6 10 10 16 16 16 Final Carried 16 | 4 10 10 16 16 11 Class Distribution -------------------- 61% | Gunner 36% | Mutant Dominant Class ---------------- Mutant | -10/Materials Mutant | -10/Mines Gunner | -9/Materials Gunner | -9/Mines Gunner | -9/Exiles Resources | -11 -10 -10 -9 -9 -9 ----------- Run | Scr Mat Min Mat Min Exi Matter Collected 616 | 219 112 50 169 66 . Remotely . | . . . . . . Salvage Created 649 | 21 112 50 225 201 40 Parts 55 | 7 9 4 16 19 . Haulers Intercepted . | . . . . . . Recyclers Shooed 1 | . . . . 1 . Parts Field Recycled . | . . . . . . Retrieved Matter . | . . . . . . Parts Self-Destructed . | . . . . . . Prevented . | . . . . . . Kills | -11 -10 -10 -9 -9 -9 ------- Run | Scr Mat Min Mat Min Exi Combat Hostiles Destroyed 18 | . 2 3 4 4 5 Guns 13 | . 2 3 4 4 . Cannons 1 | . . . . . 1 AOE 4 | . . . . . 4 Classes Destroyed 8 | 1 2 1 1 2 1 Worker 5 | 2 . . 1 2 . Tunneler 1 | . . . . 1 . Recycler 1 | . . . . 1 . Watcher 1 | . 1 . . . . Swarmer 7 | . . 3 . 4 . Grunt 4 | . 2 . 2 . . Sentry 2 | . . . 2 . . Assembled 5 | . . . . . 5 Best Kill Streak 5 | 2 2 3 4 3 5 Combat Bots Only 5 | . 2 3 4 2 5 Max Kills in Single Turn 2 | 1 1 1 1 2 2 Gunslinging 1 | . . . . 1 . Exploded 2 | . . . . . 2 Melee . | . . . . . . Uniques/NPCs Destroyed . | . . . . . . Combat | -11 -10 -10 -9 -9 -9 -------- Run | Scr Mat Min Mat Min Exi Damage Taken 1327 | . 88 62 117 143 917 Core 141 | . . . 24 8 109 Absorbed by Shields . | . . . . . . Core Remaining (%) 100 | 100 . 100 . . . Volleys Fired 62 | 2 18 4 7 13 18 Largest 3 | 2 2 2 3 3 3 Hottest 108 | 40 40 60 100 100 108 Shots Fired 137 | 4 27 8 21 39 38 Gun 124 | 4 27 8 21 39 25 Cannon 10 | . . . . . 10 Launcher 3 | . . . . . 3 Special . | . . . . . . Kinetic 71 | 4 18 4 7 13 25 Thermal 10 | . . . . . 10 Explosive 3 | . . . . . 3 Electromagnetic 53 | . 9 4 14 26 . Robot Hit Streak 12 | . 10 1 12 7 5 Robot Miss Streak 3 | 2 3 2 2 3 3 Penetration Max . | . . . . . . Secondary Targets 1 | . . . . 1 . Max Gunslinging Chain 1 | . . . . 1 . Shots Hit Robots 74 | . 19 3 13 19 20 Core Hits 41 | 2 8 3 9 9 10 Critical Hits 1 | . 1 . . . . Critical Kills . | . . . . . . Critical Parts Destroyed 1 | . 1 . . . . Melee Attacks . | . . . . . . Impact . | . . . . . . Slashing . | . . . . . . Piercing . | . . . . . . Sneak Attacks . | . . . . . . Combat Hostiles . | . . . . . . Follow-up Attacks . | . . . . . . Damage Inflicted 1257 | 25 236 35 171 304 486 Guns 832 | 25 236 35 171 203 162 Cannons 50 | . . . . . 50 Explosions 375 | . . . . 101 274 Melee . | . . . . . . Ramming . | . . . . . . Kinetic 412 | 25 152 15 43 15 162 Thermal 151 | . . . . 101 50 Explosive 274 | . . . . . 274 Electromagnetic 420 | . 84 20 128 188 . Impact . | . . . . . . Slashing . | . . . . . . Piercing . | . . . . . . Highest Corruption . | . . . . . . Average Corruption . | . . . . . . Corruption Purged . | . . . . . . Overload Shots . | . . . . . . Overflow Damage 16 | . . . . 16 . Projectiles . | . . . . . . Explosions 16 | . . . . 16 . Melee . | . . . . . . Knockbacks . | . . . . . . Impact . | . . . . . . Kinetic . | . . . . . . Secondary . | . . . . . . Self-Inflicted Damage 93 | . . . . 69 24 Shots 3 | . . . . 2 1 Rammed . | . . . . . . Targets Rammed . | . . . . . . Kicked . | . . . . . . Crushed . | . . . . . . Highest Temperature 167 | . 43 18 167 127 130 Average Temperature 44 | . 17 9 77 41 67 Received Heat Transfer 102 | . 57 . 45 . . Siege Activations . | . . . . . . Robots Corrupted . | . . . . . . Combat Hostiles . | . . . . . . Parts Fried 5 | . 1 . 2 2 . Impact Corruptions . | . . . . . . Robots Melted . | . . . . . . Combat Hostiles . | . . . . . . Parts Melted . | . . . . . . Heat Transferred 210 | . . . . 100 110 Parts Sabotaged . | . . . . . . Parts Stolen . | . . . . . . Parts Stripped . | . . . . . . Power Chain Reactions 3 | . . . . 3 . Missiles Intercepted . | . . . . . . Alert | -11 -10 -10 -9 -9 -9 ------- Run | Scr Mat Min Mat Min Exi Peak Influence 167 | 10 63 109 167 100 . Initial 42 | . 6 24 42 . . Average 42 | . 35 101 81 21 . Maximum Alert Level . | . . . . . . Low Security (%) 100 | 100 100 100 100 100 . Level 1 . | . . . . . . Level 2 . | . . . . . . Level 3 . | . . . . . . Level 4 . | . . . . . . Level 5 . | . . . . . . High Security . | . . . . . . Max Security . | . . . . . . Squads Dispatched . | . . . . . . Investigation . | . . . . . . Extermination . | . . . . . . Reinforcement . | . . . . . . Assault . | . . . . . . Garrison . | . . . . . . Intercept . | . . . . . . Construction Impeded . | . . . . . . Haulers Reinforced . | . . . . . . Stealth | -11 -10 -10 -9 -9 -9 --------- Run | Scr Mat Min Mat Min Exi Distress Signals 1 | . 1 . . . . Communications Jammed . | . . . . . . Distress Signals . | . . . . . . Times Spotted 28 | . 7 3 5 6 7 Peak Tracking Total 9 | . 3 3 5 4 9 Tactical Retreats 1 | . . . . 1 . Traps | -11 -10 -10 -9 -9 -9 ------- Run | Scr Mat Min Mat Min Exi Traps Triggered . | . . . . . . Indirectly . | . . . . . . Trap Hack Attempts . | . . . . . . Triggered . | . . . . . . Disarmed . | . . . . . . Reprogrammed . | . . . . . . Reused . | . . . . . . Traps Extracted . | . . . . . . Installed . | . . . . . . Triggered . | . . . . . . Machines | -11 -10 -10 -9 -9 -9 ---------- Run | Scr Mat Min Mat Min Exi Machines Disabled 3 | . . . 1 . 2 Max in Single Turn 1 | . . . 1 . 1 Machines Sabotaged . | . . . . . . Garrisons Compromised . | . . . . . . Overloaded Fab Kills . | . . . . . . Fab Network Shutdowns . | . . . . . . Hacking | -11 -10 -10 -9 -9 -9 --------- Run | Scr Mat Min Mat Min Exi Machines Accessed 4 | . 3 . 1 . . Terminals 4 | . 3 . 1 . . Fabricators . | . . . . . . Repair Stations . | . . . . . . Recycling Units . | . . . . . . Scanalyzers . | . . . . . . Garrison Access . | . . . . . . Total Hacks 10 | . 6 . 4 . . Successful 5 | . 3 . 2 . . Failed 5 | . 3 . 2 . . Catastrophic 1 | . . . 1 . . Database Lockouts . | . . . . . . Manual 2 | . 2 . . . . Terminals 10 | . 6 . 4 . . Fabricators . | . . . . . . Repair Stations . | . . . . . . Recycling Units . | . . . . . . Scanalyzers . | . . . . . . Garrison Access . | . . . . . . Terminal Hacks 5 | . 3 . 2 . . Record 1 | . . . 1 . . Alert Level 1 | . 1 . . . . Locate Traps 2 | . 2 . . . . Zone Layout 1 | . . . 1 . . Fabricator Hacks . | . . . . . . Repair Station Hacks . | . . . . . . Recycling Unit Hacks . | . . . . . . Scanalyzer . | . . . . . . Garrison Access Hacks . | . . . . . . Unauthorized Hacks . | . . . . . . Terminals . | . . . . . . Fabricators . | . . . . . . Repair Stations . | . . . . . . Recycling Units . | . . . . . . Scanalyzers . | . . . . . . Garrison Access . | . . . . . . Data Cores Recovered . | . . . . . . Used . | . . . . . . Hacking Detections 3 | . 2 . 1 . . Full Trace Events . | . . . . . . Feedback Events . | . . . . . . Feedback Blocked . | . . . . . . Robot Schematics Acquired . | . . . . . . Robots Built . | . . . . . . Matter . | . . . . . . Time . | . . . . . . Total Robot Build Rating . | . . . . . . Part Schematics Acquired . | . . . . . . Parts Built . | . . . . . . Matter . | . . . . . . Time . | . . . . . . Total Part Build Rating . | . . . . . . Parts Repaired . | . . . . . . Time . | . . . . . . Parts Recycled . | . . . . . . Recycled Matter . | . . . . . . Retrieved Matter . | . . . . . . Retrieved Components . | . . . . . . Parts Scanalyzed . | . . . . . . Part Schematics Acquired . | . . . . . . Parts Damaged . | . . . . . . Bothacking | -11 -10 -10 -9 -9 -9 ------------ Run | Scr Mat Min Mat Min Exi Used RIF Installer . | . . . . . . Robots Hacked . | . . . . . . Non-combat . | . . . . . . Combat . | . . . . . . Robot Hacks Applied . | . . . . . . Relay Couplers Released . | . . . . . . Robots Rewired . | . . . . . . Allies Hacked . | . . . . . . Hacks Repelled . | . . . . . . Allies | -11 -10 -10 -9 -9 -9 -------- Run | Scr Mat Min Mat Min Exi Total Allies . | . . . . . . Largest Group . | . . . . . . Highest-Rated Group . | . . . . . . Highest-Rated Ally . | . . . . . . Total Orders . | . . . . . . Ally Attacks . | . . . . . . Total Damage . | . . . . . . Kills . | . . . . . . Allies Corrupted . | . . . . . . Allies Melted . | . . . . . . Intel | -11 -10 -10 -9 -9 -9 ------- Run | Scr Mat Min Mat Min Exi Robot Analysis Total . | . . . . . . Derelict Logs Recovered 2 | . . . . 2 . Drone Launches . | . . . . . . Drone Recoveries . | . . . . . . Exploration | -11 -10 -10 -9 -9 -9 ------------- Run | Scr Mat Min Mat Min Exi Turns Passed 1729 | 113 397 83 401 592 143 Spaces Moved 916 | 62 215 42 208 341 48 Core 3 | 3 . . . . . Treads 910 | 59 215 42 208 341 45 Legs . | . . . . . . Wheels 3 | . . . . . 3 Hover . | . . . . . . Flight . | . . . . . . Fastest Speed 50 | 50 160 160 160 160 100 Average Speed 162 | 154 160 160 172 160 156 Slowest Speed 180 | 160 160 160 180 160 160 Overloaded Moves . | . . . . . . Propulsion Burnouts . | . . . . . . Robots Hopped . | . . . . . . Cave-ins Triggered . | . . . . . . Exploration Rate (%) 32 | 6 45 17 26 89 11 Regions Visited 5 Branch Regions 3 Pre-discovered Areas . | . . . . . . Known Exits Taken . | . . . . . . Unknown Exits Taken 5 | 1 1 1 1 1 . Scrap Searched 1 | . . . . 1 . Spaces Dug 6 | . . . . . 6 Terrain Destroyed 37 | . . . . 16 21 Melee . | . . . . . . Projectile 1 | . . . . . 1 AOE 36 | . . . . 16 20 Terrain Rammed . | . . . . . . Walls Destroyed . | . . . . . . Machines Disabled . | . . . . . . Actions | -11 -10 -10 -9 -9 -9 --------- Run | Scr Mat Min Mat Min Exi Total 1039 | 73 242 50 234 359 81 Wait 17 | . . 5 5 4 3 Move 911 | 61 214 41 207 340 48 Hop . | . . . . . . Pick Up 19 | 4 6 . 8 1 . Fast Attach 8 | 6 1 . 1 . . Attach 7 | . . . 2 . 5 Detach . | . . . . . . Swap 12 | . 2 . 3 . 7 Drop 3 | . 1 . 1 1 . Fire 62 | 2 18 4 7 13 18 Melee . | . . . . . . Ram . | . . . . . . Kick . | . . . . . . Crush . | . . . . . . Escape Stasis . | . . . . . . Rewire . | . . . . . . Trap . | . . . . . . Miscellaneous . | . . . . . . Route ------- -11/Scrapyard -10/Materials (discovered 2 exits: *Mat / [*Min]) -10/Mines -9/Materials (discovered 2 exits: [*Min] / [*Sto]) -9/Mines (discovered 4 exits: [*Mat x2] / [*Exi] / [*Zio]) -9/Exiles (discovered 1 exit: [*Min]) History --------- Turn | Location | Event 8 | -11/Scrapyard | Discovered new exit (range 15) 114 | -11/Scrapyard | Entered Materials 307 | -10/Materials | Build established: Mutant 367 | -10/Materials | Discovered new exit (range 15) 459 | -10/Materials | Discovered new exit (range 13) 511 | -10/Materials | Entered Mines 545 | -10/Mines | Assembled infested the area 573 | -10/Mines | Discovered new exit (range 14) 594 | -10/Mines | Entered Materials 594 | -9/Materials | Evolved 2 slots: Propulsion x1, Weapon x1 856 | -9/Materials | Discovered new exit (range 3) 925 | -9/Materials | Build established: Gunner 950 | -9/Materials | Discovered new exit (range 7) 995 | -9/Materials | Entered Mines 1003 | -9/Mines | Discovered new exit (range 12) 1084 | -9/Mines | Discovered new exit (range 13) 1177 | -9/Mines | A Derelict revealed a hidden shortcut to a safe place 1213 | -9/Mines | Learned Materials emergency access door positions 1227 | -9/Mines | Received a Rocket Launcher from a helpful Derelict 1308 | -9/Mines | Learned location of 1 exit from Materials 1581 | -9/Mines | Deemed a non-threat by the Exiles lab entrance 1581 | -9/Mines | Discovered new exit (range 5) 1587 | -9/Mines | Entered Exiles 1608 | -9/Exiles | Discovered new exit (range 15) 1631 | -9/Exiles | Met 8R-AWN 1673 | -9/Exiles | Attacked by the Exiles 1730 | -9/Exiles | Self-destructed Last Messages --------------- 01704_ HV Slug penetrates Earth. 01705_ Destroyed Asb. Heavy Rifle. 01706_ Penetrated by HV Slug. 01706_ HV Slug penetrates Earth. 01706_ Penetrated by HV Slug. 01706_ HV Slug penetrates Earth. 01708_ Penetrated by HV Slug. 01708_ HV Slug penetrates Earth. 01708_ Penetrated by HV Slug. 01711_ The unstable cave ceiling collapses. 01711_ Penetrated by HV Slug. 01713_ Critical hit. 01713_ Assault Rifle destroyed. 01713_ Penetrated by HV Slug. 01717_ HV Slug penetrates Wall. 01720_ Penetrated by HV Slug. 01722_ Lgt. Nuclear Core destroyed. 01722_ Penetrated by HV Slug. 01723_ The unstable cave ceiling collapses. 01724_ Penetrated by HV Slug. Map ----- +----------------------------------------------------+ | ?????????????????????????????????????????????????? | | ?????????????????????????????????????????????????? | | ?????????????????????????????????????????????????? | | ?????????????????????????????????????????????????? | | ?????????????????????????????????????????????????? | | ?????????????????????????????????????????????????? | | ?????????????????????????????????????????????????? | | ?????????????????????????????????????????????????? | | ?????????????????????????????????????????????????? | | ?????????????????????????????????????????????????? | | ?????????????????????????????????????????????????? | | ????????????????????????????????????? ???????????? | | ???????????????????????????????????? < #????????? | | ???????????????????????????????????? #????????? | | ???????????????????????????????????? ?????????? | | ???????????????????????????????????# #?????????? | | ?????????????????????????????????## ##????????? | | ?????????????????????????????????# #????????? | | ?????????????###?????????????????# #????????? | | ????????????##" ????????????????## ?????????? | | ????????????#" ??????????????## #??????????? | | ???????????##" ##?#######????# #??????????? | | ?????????### ### ##?### #???????????? | | ?????????# # ### #???????????? | | ?????????# ;# #????????????? | | ????????# % g%%@ * ;; ????????? | | ????? % # #???????????? | | ???? %# ##??????????? | | ???? ## ""#### ###????????? | | ???? #"""???### ##??#### * ###??????? | | ????? ?###??????#?????????##### ##?????? | | ????? ?????????????????????????### #?????? | | ?????????????????????????????????### #?????? | | ???????????????????????????????????### #?????? | | ????????????????????????????????????#" ##????? | | ????????????????????????????????????#### ###??? | | ???????????????????????????????????????# ##?? | | ???????????????????????????????????????## ### | | ????????????????????????????????????????### # | | ??????????????????????????????????????????# ## | | ??????????????????????????????????????????## ##? | | ???????????????????????????????????????????#####?? | | ?????????????????????????????????????????????????? | | ?????????????????????????????????????????????????? | | ?????????????????????????????????????????????????? | | ?????????????????????????????????????????????????? | | ?????????????????????????????????????????????????? | | ?????????????????????????????????????????????????? | | ?????????????????????????????????????????????????? | | ?????????????????????????????????????????????????? | +----------------------------------------------------+ Best States ------------- Heat Dissipation 28 Energy Generation 14 Energy Capacity 250 Matter Stores 300 Matter Capacity 300 Sight Range 16 Terrain Scan Density 10 Armor Coverage 150 Evasion (%) 40 Recoil Reduction 3 Item Schematics ----------------- None Robot Schematics ------------------ None Fabricated ------------ Nothing Alien Tech Used ----------------- None Achievements -------------- None Challenges ------------ None Game ------ Seed BottomlessResetShotgun Manual? 0 Play Time 00:14:09 Cumulative 372.5 hours Start 2020.11.05 @ 17:40:03 End 2020.11.05 @ 18:09:48 Sessions 2 Manual Loads 0 Difficulty Rogue Special Mode Halloween2020/ForbiddenLore Game No. 424 Rogue 424 Adventurer 0 Explorer 0 Win Type - Total 32 Types 21/3/7/1/0/0/0/0/0 Lore% 77 Gallery% 87 Achievement% 58 Wizard Run 0 Options --------- ASCII 1 Keyboard 1 Movement Numpad Keybinds 0 Fullscreen 1 Font 18/SmallcapsGlow Map View 76x50 Tactical HUD 1 Map Filters NONE Filters NONE Steam 1 RUN: cb69cd15-b7fd-4ed9-90ba-1e2120655538